fUST/lending_fUST_20241227
["ID","MTS","AMOUNT","RATE_DAILY","PERIOD"]
[346732904,1735255773785,-500.0,0.00015697,2]
[346732905,1735255773807,-500.0,0.00015697,2]
[346732906,1735255773829,-500.0,0.00015697,2]
[346732907,1735255773853,-500.0,0.00015697,2]
[346732908,1735255773880,-500.0,0.00015697,2]
[346732909,1735255773903,-500.0,0.00015697,2]
[346732910,1735255773925,-500.0,0.00015697,2]
[346732911,1735255773947,-500.0,0.00015697,2]
[346732912,1735255773969,-500.0,0.00015697,2]
[346732913,1735255773993,-500.0,0.00015697,2]
[346732914,1735255774016,-500.0,0.00015697,2]
[346732915,1735255774039,-608.66,0.00015697,2]
[346732916,1735255774062,-500.0,0.00015697,2]
[346732917,1735255774084,-500.0,0.00015697,2]
[346732918,1735255774105,-500.0,0.00015697,2]
[346732919,1735255774128,-500.0,0.00015697,2]
[346732920,1735255774151,-1511.87,0.00015697,2]
[346732921,1735255774172,-500.0,0.00015697,2]
[346732922,1735255774194,-500.0,0.00015697,2]
[346732923,1735255774216,-500.0,0.00015697,2]
[346732924,1735255774237,-500.0,0.00015697,2]
[346732925,1735255774259,-500.0,0.00015697,2]
[346732926,1735255774281,-500.0,0.00015697,2]
[346732927,1735255774306,-500.0,0.00015697,2]
[346732928,1735255774328,-1010.68,0.00015697,2]
[346732929,1735255774349,-500.0,0.00015697,2]
[346732930,1735255774371,-1482.92,0.00015697,2]
[346732931,1735255774393,-869.66,0.00015697,2]
[346732932,1735255774417,-717.33,0.00015697,2]
[346732933,1735255774438,-500.0,0.00015697,2]
[346732934,1735255774460,-500.0,0.00015697,2]
[346732935,1735255774482,-500.0,0.00015697,2]
[346732936,1735255774505,-500.0,0.00015697,2]
[346732937,1735255774527,-500.0,0.00015697,2]
[346732938,1735255774548,-500.0,0.00015697,2]
[346732939,1735255774570,-500.0,0.00015697,2]
[346732940,1735255774592,-500.0,0.00015697,2]
[346732941,1735255774614,-660.02,0.00015697,2]
[346732942,1735255774637,-500.0,0.00015697,2]
[346732943,1735255774659,-500.0,0.00015697,2]
[346732944,1735255774680,-500.0,0.00015697,2]
[346732945,1735255774706,-1843.31,0.00015697,2]
[346732946,1735255774728,-151.0,0.00015697,2]
[346732947,1735255774750,-500.0,0.00015697,2]
[346732948,1735255774772,-151.0,0.00015697,2]
[346732949,1735255774795,-500.0,0.00015697,2]
[346732950,1735255774816,-151.0,0.00015697,2]
[346732951,1735255774838,-151.0,0.00015697,2]
[346732952,1735255774863,-947.55,0.00015697,2]
[346732953,1735255774885,-151.0,0.00015697,2]
[346732954,1735255774988,-151.0,0.00015697,2]
[346732955,1735255775013,-151.0,0.00015697,2]
[346732956,1735255775035,-500.0,0.00015697,2]
[346732957,1735255775056,-500.0,0.00015697,2]
[346732958,1735255775079,-1356.42614932,0.0001587,2]
[346732959,1735255775102,-500.0,0.00015929,2]
[346732960,1735255775124,-2199.21,0.00015969,2]
[346732961,1735255775148,-500.0,0.00015969,2]
[346732962,1735255775172,-792.59,0.00015969,2]
[346732963,1735255775196,-500.0,0.00015969,2]
[346732964,1735255775217,-558.4,0.00015969,2]
[346732965,1735255775240,-500.0,0.00015969,2]
[346732966,1735255775267,-10422.18,0.00015969,2]
[346732967,1735255775289,-151.0,0.00015969,2]
[346732968,1735255775311,-500.0,0.00015969,2]
[346732969,1735255775333,-151.0,0.00015969,2]
[346732970,1735255775355,-151.0,0.00015969,2]
[346732971,1735255775378,-818.40087834,0.0001597,2]
[346732972,1735255775405,-21509.24754643,0.0001597,2]
[346732973,1735255775428,-500.0,0.0001597,2]
[346732974,1735255775450,-500.0,0.0001597,2]
[346732975,1735255775474,-332.6682275,0.0001597,2]
[346732976,1735255775496,-500.0,0.0001597,2]
[346732977,1735255775518,-500.0,0.0001597,2]
[346732978,1735255775539,-500.0,0.0001597,2]
[346732979,1735255775560,-525.81442526,0.0001597,2]
[346732980,1735255775580,-500.0,0.0001597,2]
[346732981,1735255775601,-500.0,0.0001597,2]
[346732982,1735255775622,-500.0,0.0001597,2]
[346732983,1735255775642,-500.0,0.0001597,2]
[346732984,1735255775664,-500.0,0.0001597,2]
[346732985,1735255775685,-500.0,0.0001597,2]
[346732986,1735255775706,-500.0,0.0001597,2]
[346732987,1735255775727,-500.0,0.0001597,2]
[346732988,1735255775748,-500.0,0.0001597,2]
[346732989,1735255775769,-794.74,0.0001597,2]
[346732990,1735255775790,-500.0,0.0001597,2]
[346732991,1735255775812,-500.0,0.0001597,2]
[346732992,1735255775834,-500.0,0.0001597,2]
[346732993,1735255775856,-500.0,0.0001597,2]
[346732994,1735255775882,-500.0,0.0001597,2]
[346732995,1735255775903,-500.0,0.0001597,2]
[346732996,1735255775924,-500.0,0.0001597,2]
[346732997,1735255775945,-500.0,0.0001597,2]
[346732998,1735255775966,-861.59,0.0001597,2]
[346732999,1735255775987,-500.0,0.0001597,2]
[346733000,1735255776010,-500.0,0.0001597,2]
[346733001,1735255776032,-500.0,0.0001597,2]
[346733002,1735255776054,-500.0,0.0001597,2]
[346733003,1735255776076,-500.0,0.0001597,2]
[346733004,1735255776097,-550.64,0.0001597,2]
[346733005,1735255776119,-1245.51,0.0001597,2]
[346733006,1735255776139,-500.0,0.0001597,2]
[346733007,1735255776160,-578.68,0.0001597,2]
[346733008,1735255776182,-500.0,0.0001597,2]
[346733009,1735255776204,-500.0,0.0001597,2]
[346733010,1735255776228,-500.0,0.0001597,2]
[346733011,1735255776251,-1146.77,0.0001597,2]
[346733012,1735255776275,-168.0,0.0001597,2]
[346733013,1735255776299,-513.18,0.0001597,2]
[346733014,1735255776322,-240.39461762,0.0001597,2]
[346733015,1735255776345,-500.0,0.0001597,2]
[346733016,1735255776368,-500.0,0.0001597,2]
[346733017,1735255776393,-895.6,0.0001597,2]
[346733018,1735255776417,-1236.44,0.0001597,2]
[346733019,1735255776440,-202.53,0.0001597,2]
[346733020,1735255776467,-500.0,0.0001597,2]
[346733021,1735255776494,-621.160509,0.0001597,2]
[346733022,1735255776515,-621.160509,0.0001597,2]
[346733023,1735255776540,-1833.18,0.0001597,2]
[346733024,1735255776563,-151.0,0.0001597,2]
[346733025,1735255776592,-768.86,0.0001597,2]
[346733026,1735255776617,-500.0,0.0001597,2]
[346733027,1735255776639,-500.0,0.0001597,2]
[346733028,1735255776662,-500.0,0.0001597,2]
[346733029,1735255776685,-502.3,0.0001597,2]
[346733030,1735255776710,-867.9,0.0001597,2]
[346733031,1735255776735,-500.0,0.0001597,2]
[346733032,1735255776758,-1440.831388,0.0001597,2]
[346733033,1735255776779,-500.0,0.0001597,2]
[346733034,1735255776894,-1067.07,0.0001597,2]
[346733035,1735255776919,-1440.831388,0.0001597,2]
[346733036,1735255776941,-313.65,0.0001597,2]
[346733037,1735255776964,-500.0,0.0001597,2]
[346733038,1735255776986,-1734.008829,0.0001597,2]
[346733039,1735255777009,-1734.008829,0.0001597,2]
[346733040,1735255777032,-540.907442,0.0001597,2]
[346733041,1735255777054,-540.907442,0.0001597,2]
[346733042,1735255777076,-540.907442,0.0001597,2]
[346733043,1735255777099,-540.907442,0.0001597,2]
[346733044,1735255777122,-500.0,0.0001597,2]
[346733045,1735255777143,-500.0,0.0001597,2]
[346733046,1735255777165,-632.24,0.0001597,2]
[346733047,1735255777188,-1618.58,0.0001597,2]
[346733048,1735255777212,-500.0,0.0001597,2]
[346733049,1735255777235,-500.0,0.0001597,2]
[346733050,1735255777259,-2898.9,0.0001597,2]
[346733051,1735255777280,-500.0,0.0001597,2]
[346733052,1735255777304,-500.0,0.0001597,2]
[346733053,1735255777328,-529.77,0.0001597,2]
[346733054,1735255777352,-500.0,0.0001597,2]
[346733055,1735255777375,-151.0,0.0001597,2]
[346733056,1735255777397,-500.0,0.0001597,2]
[346733057,1735255777421,-500.0,0.0001597,2]
[346733058,1735255777445,-151.0,0.0001597,2]
[346733059,1735255777469,-500.0,0.0001597,2]
[346733060,1735255777497,-36561.42,0.0001597,2]
[346733061,1735255777520,-232.37238896,0.0001597,2]
[346733062,1735255777542,-1001.87,0.0001597,2]
[346733063,1735255777564,-500.0,0.0001597,2]
[346733064,1735255777588,-151.0,0.0001597,2]
[346733065,1735255777611,-1472.44,0.0001597,2]
[346733066,1735255777631,-151.0,0.0001597,2]
[346733067,1735255777652,-1041.62,0.0001597,2]
[346733068,1735255777675,-848.55,0.0001597,2]
[346733069,1735255777699,-1532.25,0.0001597,2]
[346733070,1735255777723,-733.04,0.0001597,2]
[346733071,1735255777746,-151.0,0.0001597,2]
[346733072,1735255777769,-1485.66,0.0001597,2]
[346733073,1735255777791,-151.0,0.0001597,2]
[346733074,1735255777814,-1305.92,0.0001597,2]
[346733075,1735255777836,-151.0,0.0001597,2]
[346733076,1735255777858,-151.0,0.0001597,2]
[346733077,1735255777883,-500.0,0.0001597,2]
[346733078,1735255777906,-500.0,0.0001597,2]
[346733079,1735255777928,-500.0,0.0001597,2]
[346733080,1735255777951,-738.47,0.0001597,2]
[346733081,1735255777973,-151.0,0.0001597,2]
[346733082,1735255777995,-151.0,0.0001597,2]
[346733083,1735255778016,-151.0,0.0001597,2]
[346733084,1735255778037,-151.0,0.0001597,2]
[346733085,1735255778059,-500.0,0.0001597,2]
[346733086,1735255778081,-500.0,0.00015971,2]
[346733087,1735255778106,-500.0,0.00015971,2]
[346733088,1735255778129,-500.0,0.00015971,2]
[346733089,1735255778151,-744.75,0.00015971,2]
[346733090,1735255778173,-500.0,0.00015971,2]
[346733091,1735255778195,-500.0,0.00015971,2]
[346733092,1735255778215,-500.0,0.00015971,2]
[346733093,1735255778237,-500.0,0.00015971,2]
[346733094,1735255778259,-500.0,0.00015971,2]
[346733095,1735255778282,-500.0,0.00015971,2]
[346733096,1735255778303,-500.0,0.00015971,2]
[346733097,1735255778325,-500.0,0.00015971,2]
[346733098,1735255778348,-500.0,0.00015971,2]
[346733099,1735255778369,-500.0,0.00015971,2]
[346733100,1735255778391,-245.667163,0.00015971,2]
[346733101,1735255778413,-500.0,0.00015971,2]
[346733102,1735255778435,-245.667163,0.00015971,2]
[346733103,1735255778457,-608.66,0.00015971,2]
[346733104,1735255778478,-178.813342,0.00015971,2]
[346733105,1735255778499,-500.0,0.00015971,2]
[346733106,1735255778520,-178.813342,0.00015971,2]
[346733107,1735255778540,-151.0,0.00015971,2]
[346733108,1735255778561,-151.0,0.00015971,2]
[346733109,1735255778582,-438.989122,0.00015971,2]
[346733110,1735255778677,-151.0,0.00015971,2]
[346733111,1735255778701,-1511.87,0.00015971,2]
[346733112,1735255778723,-500.0,0.00015971,2]
[346733113,1735255778743,-500.0,0.00015971,2]
[346733114,1735255778766,-1010.68,0.00015971,2]
[346733115,1735255778787,-1482.92,0.00015971,2]
[346733116,1735255778807,-869.66,0.00015971,2]
[346733117,1735255778829,-717.33,0.00015971,2]
[346733118,1735255778851,-500.0,0.00015971,2]
[346733119,1735255778873,-500.0,0.00015971,2]
[346733120,1735255778898,-500.0,0.00015971,2]
[346733121,1735255778920,-500.0,0.00015971,2]
[346733122,1735255778942,-621.160509,0.00015971,2]
[346733123,1735255778966,-621.160509,0.00015971,2]
[346733124,1735255778986,-151.0,0.00015971,2]
[346733125,1735255779007,-500.0,0.00015971,2]
[346733126,1735255779032,-1440.831388,0.00015971,2]
[346733127,1735255779055,-1440.831388,0.00015971,2]
[346733128,1735255779076,-660.02,0.00015971,2]
[346733129,1735255779100,-1734.008829,0.00015971,2]
[346733130,1735255779123,-1734.008829,0.00015971,2]
[346733131,1735255779144,-614.40978202,0.00015971,2]
[346733132,1735255779168,-500.0,0.00015971,2]
[346733133,1735255779189,-1843.31,0.00015971,2]
[346733134,1735255779210,-500.0,0.00015971,2]
[346733135,1735255779231,-151.0,0.00015971,2]
[346733136,1735255779253,-500.0,0.00015971,2]
[346733137,1735255779276,-151.0,0.00015971,2]
[346733138,1735255779297,-151.0,0.00015971,2]
[346733139,1735255779320,-947.55,0.00015971,2]
[346733140,1735255779342,-235.592914,0.00015971,2]
[346733141,1735255779364,-151.0,0.00015971,2]
[346733142,1735255779385,-151.0,0.00015971,2]
[346733143,1735255779407,-500.0,0.00015971,2]
[346733144,1735255779432,-505.423,0.0001607,2]
[346733145,1735255779456,-9698.79114012,0.00016179,2]
[346733146,1735255779478,-151.0,0.00016179,2]
[346733147,1735255779500,-151.0,0.00016179,2]
[346733148,1735255779521,-151.0,0.00016179,2]
[346733149,1735255779544,-500.0,0.00016203,2]
[346733150,1735255779568,-540.907442,0.00016216,2]
[346733151,1735255779591,-540.907442,0.00016216,2]
[346733152,1735255779613,-292.52671236,0.00016232,2]
[346733153,1735255779867,500.0,0.00015696,2]
[346733154,1735255781221,500.0,0.00015696,2]
[346733155,1735255783079,500.0,0.00015696,2]
[346733156,1735255800463,820.97,0.00015696,2]
[346733157,1735255800723,820.97,0.0001597,2]
[346733158,1735255805049,500.0,0.00015696,2]
[346733159,1735255807285,383.23318826,0.00015696,2]
[346733160,1735255810417,500.0,0.00015696,2]
[346733161,1735255810706,500.0,0.0001597,2]
[346733162,1735255814982,2015.95,0.00014833,2]
[346733163,1735255815270,2015.95,0.00015107,2]
[346733164,1735255815890,2015.95,0.00015381,2]
[346733165,1735255815967,1063.89943693,0.0001607,2]
[346733166,1735255816225,2015.95,0.00015655,2]
[346733167,1735255816359,151.0,0.0001597,2]
[346733168,1735255816421,2015.95,0.00015929,2]
[346733169,1735255816734,1133.41,0.00015696,2]
[346733170,1735255816811,151.0,0.0001597,2]
[346733171,1735255817032,1133.41,0.0001597,2]
[346733172,1735255817206,151.0,0.00016179,2]
[346733173,1735255817611,500.0,0.00015696,2]
[346733174,1735255817651,170.396356,0.00015969,2]
[346733175,1735255817810,500.0,0.00015697,2]
[346733176,1735255818007,170.396356,0.0001597,2]
[346733177,1735255818089,500.0,0.00015971,2]
[346733178,1735255818304,170.396356,0.0001597,2]
[346733179,1735255818683,170.396356,0.00016179,2]
[346733180,1735255819175,500.0,0.00015696,2]
[346733181,1735255819462,500.0,0.00015696,2]
[346733182,1735255819735,500.0,0.0001597,2]
[346733183,1735255820031,500.0,0.0001597,2]
[346733184,1735255821625,500.0,0.00015694,2]
[346733185,1735255821810,170.396356,0.00015969,2]
[346733186,1735255821880,500.0,0.00015968,2]
[346733187,1735255822167,170.396356,0.0001597,2]
[346733188,1735255822622,170.396356,0.0001597,2]
[346733189,1735255823033,170.396356,0.00016179,2]
[346733190,1735255824958,1528.39,0.00015697,2]
[346733191,1735255826120,417.039666,0.0001597,2]
[346733192,1735255826241,1528.39,0.00015971,2]
[346733193,1735255826511,417.039666,0.0001597,2]
[346733194,1735255826952,417.039666,0.00016179,2]
[346733195,1735255827277,500.0,0.00015696,2]
[346733196,1735255827528,500.0,0.0001597,2]
[346733197,1735255828230,500.0,0.00014833,2]
[346733198,1735255828495,500.0,0.00015107,2]
[346733199,1735255828574,500.0,0.00015694,2]
[346733200,1735255828802,500.0,0.00015381,2]
[346733201,1735255828853,500.0,0.00015968,2]
[346733202,1735255829111,500.0,0.00015696,2]
[346733203,1735255829156,500.0,0.00015655,2]
[346733204,1735255829431,500.0,0.00015929,2]
[346733205,1735255830337,417.039666,0.0001597,2]
[346733206,1735255830725,417.039666,0.0001597,2]
[346733207,1735255831173,417.039666,0.00016179,2]
[346733208,1735255831528,500.0,0.00015696,2]
[346733213,1735255831660,500.0,0.00015696,2]
[346733216,1735255831827,1794.64382761,0.00016041,2]
[346733217,1735255832163,500.0,0.00015696,2]
[346733218,1735255832278,-2015.95,0.00016203,2]
[346733219,1735255832287,-500.0,0.00016203,2]
[346733220,1735255832296,-1063.89943693,0.00016232,2]
[346733221,1735255832307,-300.0,0.00016242,2]
[346733222,1735255832317,-300.0,0.00016242,2]
[346733223,1735255832326,-500.0,0.00016242,2]
[346733224,1735255832335,-792.59,0.00016243,2]
[346733225,1735255832345,-558.4,0.00016243,2]
[346733226,1735255832355,-500.0,0.00016243,2]
[346733227,1735255832365,-151.0,0.00016243,2]
[346733229,1735255832375,-151.0,0.00016243,2]
[346733231,1735255832384,-151.0,0.00016243,2]
[346733233,1735255832394,-151.0,0.00016243,2]
[346733235,1735255832403,-151.0,0.00016243,2]
[346733237,1735255832412,-10422.18,0.00016243,2]
[346733239,1735255832421,-565.03455648,0.00016244,2]
[346733240,1735255832431,-500.0,0.00016244,2]
[346733241,1735255832440,-358.94600659,0.00016244,2]
[346733242,1735255832451,-141.05399341,0.00016244,2]
[346733244,1735255832461,-202.50362837,0.00016244,2]
[346733246,1735255832472,-297.49637163,0.00016244,2]
[346733248,1735255832481,-500.0,0.00016244,2]
[346733250,1735255832490,-10.18362837,0.00016244,2]
[346733252,1735255832501,-462.228,0.00016244,2]
[346733255,1735255832513,-27.58837163,0.00016244,2]
[346733258,1735255832523,-500.0,0.00016244,2]
[346733261,1735255832532,-500.0,0.00016244,2]
[346733264,1735255832541,-133.54140861,0.00016244,2]
[346733268,1735255832555,-366.45859139,0.00016244,2]
[346733271,1735255832564,-90.27665598,0.00016244,2]
[346733299,1735255832771,500.0,0.0001597,2]
[346733571,1735255835875,693.52,0.00014833,2]
[346733598,1735255836141,693.52,0.00015107,2]
[346733627,1735255836406,693.52,0.00015381,2]
[346733655,1735255836674,693.52,0.00015655,2]
[346733684,1735255836945,693.52,0.00015929,2]
[346733846,1735255838258,-693.52,0.00016203,2]
[346733849,1735255838268,-352.73075176,0.00016243,2]
[346733895,1735255838885,-147.26924824,0.00016243,2]
[346733897,1735255838898,-258.07017988,0.00016243,2]
[346733901,1735255838948,500.0,0.00015696,2]
[346733941,1735255839547,1680.41,0.00015695,2]
[346733961,1735255839821,1680.41,0.00015969,2]
[346733968,1735255840105,-241.92982012,0.00016243,2]
[346733969,1735255840115,-26.27797942,0.00016243,2]
[346733970,1735255840126,-459.81802652,0.00016243,2]
[346733972,1735255840136,-302.76666705,0.00016243,2]
[346733974,1735255840146,-1680.41,0.00016243,2]
[346733976,1735255840156,-409.72334402,0.00016244,2]
[346733978,1735255840165,-794.74,0.00016244,2]
[346733980,1735255840175,-500.0,0.00016244,2]
[346733982,1735255840185,-500.0,0.00016244,2]
[346733984,1735255840194,-500.0,0.00016244,2]
[346733986,1735255840204,-273.67965802,0.00016244,2]
[346733988,1735255840213,-500.0,0.00016244,2]
[346733990,1735255840222,-861.59,0.00016244,2]
[346733992,1735255840231,-550.64,0.00016244,2]
[346733994,1735255840241,-1245.51,0.00016244,2]
[346733996,1735255840250,-500.0,0.00016244,2]
[346733998,1735255840259,-500.0,0.00016244,2]
[346734000,1735255840269,-500.0,0.00016244,2]
[346734002,1735255840278,-1146.77,0.00016244,2]
[346734004,1735255840287,-168.0,0.00016244,2]
[346734006,1735255840296,-513.18,0.00016244,2]
[346734008,1735255840306,-621.160509,0.00016244,2]
[346734010,1735255840318,-151.0,0.00016244,2]
[346734012,1735255840327,-768.86,0.00016244,2]
[346734014,1735255840336,-500.0,0.00016244,2]
[346734016,1735255840345,-500.0,0.00016244,2]
[346734018,1735255840355,-500.0,0.00016244,2]
[346734020,1735255840364,-502.3,0.00016244,2]
[346734022,1735255840374,-867.9,0.00016244,2]
[346734024,1735255840384,-500.0,0.00016244,2]
[346734027,1735255840394,-1440.831388,0.00016244,2]
[346734029,1735255840403,-458.14,0.00016244,2]
[346734031,1735255840412,-1067.07,0.00016244,2]
[346734032,1735255840422,-1440.831388,0.00016244,2]
[346734035,1735255840432,-500.0,0.00016244,2]
[346734037,1735255840442,-1734.008829,0.00016244,2]
[346734039,1735255840451,-540.907442,0.00016244,2]
[346734041,1735255840460,-1734.008829,0.00016244,2]
[346734043,1735255840470,-540.907442,0.00016244,2]
[346734045,1735255840479,-500.0,0.00016244,2]
[346734047,1735255840489,-500.0,0.00016244,2]
[346734049,1735255840498,-542.41,0.00016244,2]
[346734051,1735255840507,-632.24,0.00016244,2]
[346734053,1735255840517,-1618.58,0.00016244,2]
[346734055,1735255840526,-500.0,0.00016244,2]
[346734057,1735255840535,-500.0,0.00016244,2]
[346734059,1735255840544,-2898.9,0.00016244,2]
[346734061,1735255840553,-500.0,0.00016244,2]
[346734063,1735255840564,-500.0,0.00016244,2]
[346734065,1735255840573,-529.77,0.00016244,2]
[346734067,1735255840582,-500.0,0.00016244,2]
[346734069,1735255840592,-500.0,0.00016244,2]
[346734071,1735255840601,-151.0,0.00016244,2]
[346734073,1735255840611,-500.0,0.00016244,2]
[346734075,1735255840621,-151.0,0.00016244,2]
[346734077,1735255840630,-500.0,0.00016244,2]
[346734079,1735255840639,-10863.32987486,0.00016244,2]
[346734082,1735255840662,-25698.09012514,0.00016244,2]
[346734085,1735255840672,-1001.87,0.00016244,2]
[346734087,1735255840683,-500.0,0.00016244,2]
[346734089,1735255840694,-1472.44,0.00016244,2]
[346734090,1735255840706,-151.0,0.00016244,2]
[346734093,1735255840717,-1041.62,0.00016244,2]
[346734095,1735255840728,-848.55,0.00016244,2]
[346734097,1735255840738,-1532.25,0.00016244,2]
[346734099,1735255840748,-733.04,0.00016244,2]
[346734101,1735255840757,-151.0,0.00016244,2]
[346734103,1735255840766,-1485.66,0.00016244,2]
[346734105,1735255840775,-151.0,0.00016244,2]
[346734107,1735255840785,-1305.92,0.00016244,2]
[346734109,1735255840794,-500.0,0.00016244,2]
[346734111,1735255840804,-500.0,0.00016244,2]
[346734113,1735255840813,-500.0,0.00016244,2]
[346734115,1735255840823,-738.47,0.00016244,2]
[346734117,1735255840832,-151.0,0.00016244,2]
[346734119,1735255840842,-151.0,0.00016244,2]
[346734121,1735255840851,-500.0,0.00016244,2]
[346734123,1735255840861,-247.437676,0.00016244,2]
[346734132,1735255840872,-820.97,0.00016244,2]
[346734134,1735255840951,-500.0,0.00016244,2]
[346734136,1735255840961,-1133.41,0.00016244,2]
[346734138,1735255840971,-295.152007,0.00016244,2]
[346734140,1735255840980,-170.396356,0.00016244,2]
[346734142,1735255840990,-170.396356,0.00016244,2]
[346734144,1735255841000,-500.0,0.00016244,2]
[346734146,1735255841009,-170.396356,0.00016244,2]
[346734148,1735255841018,-170.396356,0.00016244,2]
[346734150,1735255841029,-417.039666,0.00016244,2]
[346734152,1735255841038,-417.039666,0.00016244,2]
[346734154,1735255841047,-500.0,0.00016244,2]
[346734156,1735255841057,-417.039666,0.00016244,2]
[346734158,1735255841068,-417.039666,0.00016244,2]
[346734160,1735255841077,-199.70935872,0.00016244,2]
[346734162,1735255841087,-529.30485286,0.00016244,2]
[346734164,1735255841096,-500.0,0.00016245,2]
[346734166,1735255841106,-500.0,0.00016245,2]
[346734168,1735255841116,-744.75,0.00016245,2]
[346734170,1735255841125,-444.89747907,0.00016245,2]
[346734172,1735255841135,-230.67459954,0.00016245,2]
[346734174,1735255841144,-500.0,0.00016245,2]
[346734176,1735255841154,-262.96574021,0.00016245,2]
[346734178,1735255841163,-500.0,0.00016245,2]
[346734180,1735255841172,-500.0,0.00016245,2]
[346734182,1735255841182,-500.0,0.00016245,2]
[346734184,1735255841191,-500.0,0.00016245,2]
[346734186,1735255841201,-608.66,0.00016245,2]
[346734188,1735255841210,-178.813342,0.00016245,2]
[346734190,1735255841219,-178.813342,0.00016245,2]
[346734192,1735255841229,-500.0,0.00016245,2]
[346734194,1735255841239,-178.813342,0.00016245,2]
[346734196,1735255841248,-178.813342,0.00016245,2]
[346734198,1735255841257,-151.0,0.00016245,2]
[346734200,1735255841267,-250.749231,0.00016245,2]
[346734202,1735255841276,-188.982597,0.00016245,2]
[346734204,1735255841286,-151.0,0.00016245,2]
[346734206,1735255841295,-151.0,0.00016245,2]
[346734209,1735255841305,-1511.87,0.00016245,2]
[346734211,1735255841316,-243.44656865,0.00016245,2]
[346734221,1735255841402,-256.55343135,0.00016245,2]
[346734223,1735255841411,-271.87271591,0.00016245,2]
[346734224,1735255841420,-1010.68,0.00016245,2]
[346734226,1735255841430,-1482.92,0.00016245,2]
[346734229,1735255841439,-869.66,0.00016245,2]
[346734231,1735255841449,-717.33,0.00016245,2]
[346734233,1735255841459,-500.0,0.00016245,2]
[346734234,1735255841469,-500.0,0.00016245,2]
[346734236,1735255841479,-500.0,0.00016245,2]
[346734238,1735255841488,-500.0,0.00016245,2]
[346734241,1735255841498,-621.160509,0.00016245,2]
[346734243,1735255841507,-151.0,0.00016245,2]
[346734245,1735255841517,-500.0,0.00016245,2]
[346734247,1735255841526,-1440.831388,0.00016245,2]
[346734248,1735255841536,-660.02,0.00016245,2]
[346734251,1735255841546,-1440.831388,0.00016245,2]
[346734252,1735255841556,-1734.008829,0.00016245,2]
[346734254,1735255841567,-1734.008829,0.00016245,2]
[346734256,1735255841576,-500.0,0.00016245,2]
[346734259,1735255841587,-1843.31,0.00016245,2]
[346734261,1735255841597,-500.0,0.00016245,2]
[346734263,1735255841608,-947.55,0.00016245,2]
[346734264,1735255841619,-500.0,0.00016245,2]
[346734266,1735255841629,-500.0,0.00016245,2]
[346734268,1735255841638,-1528.39,0.00016245,2]
[346734270,1735255841647,-825.578822,0.00016295,2]
[346734272,1735255841657,-159.0,0.00016308,2]
[346734275,1735255841667,-159.0,0.00016308,2]
[346734277,1735255841676,-159.0,0.00016308,2]
[346734278,1735255841685,-160.54,0.00016308,2]
[346734280,1735255841695,-500.0,0.00016438,2]